bitfinex/quotes_BTCUSD_20220103
["timestamp","ask_amount","ask_price","bid_price","bid_amount"]
[1641235552913,0.10759771,46483.0,46481.0,0.00011]
[1641235557905,0.10759771,46483.0,46480.0,0.057663]
[1641235559709,0.10000805,46483.0,46480.0,0.057663]
[1641235559911,0.58696528,46482.0,46480.0,0.057663]
[1641235564154,0.63516528,46482.0,46480.0,0.057663]
[1641235564357,0.89912064,46481.0,46480.0,0.003863]
[1641235564553,0.7506,46481.0,46480.0,0.003863]
[1641235564752,0.7506,46481.0,46480.0,6.3e-05]
[1641235564954,0.8006,46481.0,46480.0,6.3e-05]
[1641235565228,1.77321156,46481.0,46480.0,6.3e-05]
[1641235565419,1.99084625,46481.0,46480.0,6.3e-05]
[1641235565616,1.77321156,46481.0,46480.0,6.3e-05]
[1641235566421,2.02823019,46481.0,46478.0,0.000127]
[1641235566619,0.59377531,46480.0,46478.0,0.000127]
[1641235566820,0.54793072,46479.0,46478.0,0.000127]
[1641235567022,0.64793072,46479.0,46478.0,0.000127]
[1641235567820,0.64793072,46479.0,46478.0,0.00866]
[1641235568022,1.76064228,46479.0,46477.0,0.053816]
[1641235568321,0.50249538,46478.0,46477.0,0.053816]
[1641235568519,0.70069538,46478.0,46477.0,0.053816]
[1641235568720,2.27570694,46478.0,46477.0,0.008534]
[1641235568965,2.27570694,46478.0,46477.0,0.017067]
[1641235569367,2.27570694,46478.0,46471.0,0.00222]
[1641235569368,0.2,46476.0,46471.0,0.00222]
[1641235569569,0.2,46473.0,46471.0,0.00222]
[1641235569766,0.0482,46472.0,46471.0,0.00222]
[1641235570065,0.0482,46472.0,46471.0,0.010753]
[1641235572368,0.0482,46472.0,46471.0,0.010093]
[1641235572369,1.7806,46472.0,46471.0,0.010093]
[1641235572569,0.2,46471.0,46465.0,0.00044]
[1641235572834,0.2,46471.0,46466.0,0.00011]
[1641235572835,0.2,46467.0,46466.0,0.00011]
[1641235573034,0.36151753,46467.0,46465.0,0.00044]
[1641235573238,0.41151753,46467.0,46462.0,0.00055]
[1641235573432,0.41151753,46467.0,46459.0,0.00044]
[1641235573433,0.2,46465.0,46451.0,0.00144]
[1641235573635,0.2,46465.0,46444.0,0.00033]
[1641235573636,0.6024,46455.0,46444.0,0.00033]
[1641235573835,0.053852,46451.0,46450.0,0.72942259]
[1641235574034,0.053852,46451.0,46444.0,0.00033]
[1641235574035,0.8506,46451.0,46444.0,0.00033]
[1641235574235,0.8024,46447.0,46444.0,0.00033]
[1641235574433,0.2,46445.0,46442.0,0.00055]
[1641235574633,0.2,46443.0,46442.0,0.00055]
[1641235574838,0.2482,46443.0,46438.0,0.00022]
[1641235575034,0.2482,46443.0,46436.0,0.092476]
[1641235575232,0.2982,46443.0,46436.0,0.092476]
[1641235575635,0.2982,46443.0,46440.0,0.053855]
[1641235575833,0.2982,46443.0,46440.0,0.043855]
[1641235576034,0.16156163,46441.0,46440.0,0.043855]
[1641235576334,0.155908,46441.0,46440.0,0.043635]
[1641235576565,2.00934685,46441.0,46436.0,0.00022]
[1641235576767,0.8024,46439.0,46436.0,0.00011]
[1641235576962,0.2,46437.0,46436.0,0.00011]
[1641235577161,0.2,46437.0,46405.0,1.7992]
[1641235577365,0.2,46437.0,46415.0,0.00122609]
[1641235577366,0.00125925,46432.0,46415.0,0.00122609]
[1641235577564,0.00125925,46432.0,46430.0,0.33663047]
[1641235577565,0.24799632,46431.0,46430.0,0.33663047]
[1641235577965,0.24799632,46431.0,46430.0,0.63208127]
[1641235577966,0.04747569,46431.0,46430.0,0.63208127]
[1641235578164,0.00125925,46432.0,46430.0,0.63208127]
[1641235578366,0.00801584,46435.0,46430.0,0.33663047]
[1641235578664,0.00801584,46435.0,46432.0,0.09363482]
[1641235579066,0.00801584,46435.0,46430.0,0.34516447]
[1641235579466,0.00801584,46435.0,46434.0,0.20142544]
[1641235579874,0.00801584,46435.0,46432.0,0.053845]
[1641235580313,0.00129989,46437.0,46432.0,0.053845]
[1641235580613,0.64585,46441.0,46430.0,0.008534]
[1641235580614,1.54638506,46441.0,46436.0,0.053849]
[1641235581011,0.253849,46440.0,46436.0,0.053849]
[1641235581210,0.053849,46440.0,46436.0,0.053849]
[1641235581609,0.053849,46440.0,46435.0,9.401e-05]
[1641235581809,0.58017454,46439.0,46437.0,0.07854777]
[1641235582212,0.57501454,46439.0,46438.0,1.3982]
[1641235582417,0.57501454,46439.0,46438.0,2.0006]
[1641235582614,0.57501454,46439.0,46438.0,2.350916]
[1641235582812,0.14438354,46439.0,46438.0,1.000916]
[1641235583012,0.22771087,46443.0,46442.0,1.920316]
[1641235583227,0.00801573,46461.0,46446.0,0.350316]
[1641235583419,0.00801573,46461.0,46452.0,0.0163]
[1641235583614,0.00801573,46461.0,46458.0,0.44584945]
[1641235583811,0.00801573,46461.0,46458.0,0.09134071]
[1641235584064,0.00801573,46461.0,46458.0,0.31096375]
[1641235584263,0.00222933,46469.0,46458.0,0.09134071]
[1641235584465,0.00801544,46463.0,46458.0,0.350316]
[1641235585066,9.001,46459.0,46458.0,0.350316]
[1641235585262,9.001,46459.0,46458.0,0.28457412]
[1641235589006,9.001,46459.0,46458.0,0.38277412]
[1641235589406,9.001,46459.0,46458.0,0.48277412]
[1641235589606,8.570584,46459.0,46458.0,0.48277412]
[1641235589809,8.570584,46459.0,46458.0,0.38277412]
[1641235590006,8.140157,46459.0,46458.0,0.38277412]
[1641235590606,7.709725,46459.0,46458.0,0.38277412]
[1641235591211,7.709725,46459.0,46458.0,0.33277412]
[1641235591459,7.709725,46459.0,46458.0,0.0482]
[1641235591661,7.709725,46459.0,46457.0,0.053812]
[1641235594059,7.709725,46459.0,46458.0,7.504e-05]
[1641235594460,7.709725,46459.0,46458.0,0.00015008]
[1641235594858,7.704725,46459.0,46458.0,0.00015008]
[1641235595315,7.704725,46459.0,46458.0,0.28438427]
[1641235595520,7.704725,46459.0,46458.0,0.00015008]
[1641235596010,7.704725,46459.0,46458.0,0.2863678]
[1641235599854,7.704725,46459.0,46458.0,0.2854678]
[1641235601956,7.704725,46459.0,46458.0,0.3354678]
[1641235604704,7.704725,46459.0,46458.0,0.05]
[1641235604906,7.704725,46459.0,46457.0,0.10396208]
[1641235605505,7.704725,46459.0,46457.0,0.05396208]
[1641235605708,7.704725,46459.0,46458.0,0.00012196]
[1641235606553,7.704725,46459.0,46458.0,0.28052077]
[1641235606956,7.704725,46459.0,46458.0,0.33052077]
[1641235607355,7.704725,46459.0,46458.0,1.46652077]
[1641235607555,7.704725,46459.0,46458.0,0.33052077]
[1641235608957,7.699725,46459.0,46458.0,0.33052077]
[1641235610312,7.699725,46459.0,46458.0,1.46652077]
[1641235610714,7.699725,46459.0,46458.0,1.56652077]
[1641235610916,7.699725,46459.0,46458.0,1.61652077]
[1641235611114,7.699725,46459.0,46458.0,0.20012196]
[1641235612015,7.699725,46459.0,46458.0,0.05012196]
[1641235612215,7.699725,46459.0,46458.0,0.00012196]
[1641235612814,7.699725,46459.0,46457.0,0.09908404]
[1641235613014,7.699725,46459.0,46458.0,1.87662588]
[1641235613214,7.699725,46459.0,46458.0,1.41162588]
[1641235613419,7.699725,46459.0,46458.0,1.51162588]
[1641235614466,7.699725,46459.0,46458.0,0.42943288]
[1641235614665,7.699725,46459.0,46458.0,0.153807]
[1641235614866,7.699725,46459.0,46458.0,0.053807]
[1641235620409,7.699725,46459.0,46458.0,0.453807]
[1641235620611,7.699725,46459.0,46458.0,0.053807]
[1641235623149,7.699725,46459.0,46458.0,0.33783494]
[1641235624351,7.699725,46459.0,46458.0,1.47077419]
[1641235626108,7.699725,46459.0,46458.0,1.46926859]
[1641235626512,7.699725,46459.0,46458.0,1.56926859]
[1641235626909,7.699725,46459.0,46458.0,1.289807]
[1641235627111,7.699725,46459.0,46458.0,1.56987844]
[1641235627310,7.699725,46459.0,46458.0,1.289807]
[1641235628714,7.699725,46459.0,46458.0,0.153807]
[1641235629165,7.699725,46459.0,46458.0,0.053807]
[1641235630265,7.699725,46459.0,46458.0,0.72300542]
[1641235630665,7.699725,46459.0,46458.0,1.95900542]
[1641235631268,7.699725,46459.0,46458.0,0.43300542]
[1641235631965,7.699725,46459.0,46458.0,0.153807]
[1641235632168,7.699725,46459.0,46458.0,0.053807]
[1641235634211,7.699725,46459.0,46457.0,0.469009]
[1641235634608,7.699725,46459.0,46457.0,0.049009]
[1641235636663,7.699725,46459.0,46457.0,0.102827]
[1641235638265,7.699725,46459.0,46457.0,0.049009]
[1641235639268,7.699725,46459.0,46457.0,0.102828]
[1641235639669,7.699725,46459.0,46457.0,0.15664746]
[1641235640907,7.699725,46459.0,46458.0,0.05]
[1641235641803,7.699725,46459.0,46457.0,0.15664746]
[1641235643208,7.699725,46459.0,46457.0,0.10282846]
[1641235643509,0.1,46458.0,46439.0,1.082981]
[1641235643712,0.00123143,46452.0,46437.0,0.21525625]
[1641235643979,0.00126547,46443.0,46441.0,0.42]
[1641235644176,0.00126547,46443.0,46442.0,0.42]
[1641235644976,0.00126547,46443.0,46442.0,0.770316]
[1641235645579,0.107678,46452.0,46442.0,0.770316]
[1641235645779,0.00122948,46450.0,46444.0,0.053836]
[1641235646181,0.00122948,46450.0,46445.0,0.12671963]
[1641235646482,0.00122948,46450.0,46445.0,0.07288437]
[1641235646980,0.00122948,46450.0,46445.0,0.06788437]
[1641235647579,0.00122948,46450.0,46445.0,0.17555237]
[1641235647822,0.00122948,46450.0,46447.0,0.05383289]
[1641235648421,0.57926513,46453.0,46447.0,0.04883289]
[1641235648820,0.053833,46452.0,46447.0,0.04883289]
[1641235649020,0.053833,46452.0,46449.0,0.05383133]
[1641235651319,0.053833,46452.0,46448.0,0.053833]
[1641235652369,0.00126995,46453.0,46449.0,0.053831]
[1641235652969,0.00126995,46453.0,46446.0,0.14702953]
[1641235653168,0.00126995,46453.0,46446.0,0.09319853]
[1641235653368,0.05510195,46453.0,46446.0,0.14685953]
[1641235653568,0.00126995,46453.0,46446.0,0.09319853]
[1641235654369,0.00126995,46453.0,46442.0,0.70463753]
[1641235654570,0.00126995,46453.0,46448.0,0.053832]
[1641235654768,0.053833,46452.0,46448.0,0.053832]
[1641235656914,0.053833,46452.0,46448.0,0.10766359]
[1641235658016,0.05383,46455.0,46453.0,0.07191858]
[1641235659075,0.01183,46455.0,46453.0,0.07191858]
[1641235659276,0.01183,46455.0,46451.0,0.053829]
[1641235659479,0.01183,46455.0,46434.0,0.64162073]
[1641235659480,0.01183,46455.0,46444.0,0.28661414]
[1641235659680,0.01183,46455.0,46441.0,0.28933285]
[1641235659877,0.01183,46455.0,46444.0,0.28921793]
[1641235660278,0.01183,46455.0,46444.0,0.51537954]
[1641235660477,0.01183,46455.0,46448.0,0.08118791]
[1641235660777,0.01183,46455.0,46449.0,0.05383005]
[1641235660977,0.01183,46455.0,46448.0,0.08118791]
[1641235661177,0.01183,46455.0,46448.0,0.36342827]
[1641235661383,0.01183,46455.0,46448.0,0.08118791]
[1641235661677,0.15,46450.0,46448.0,0.08118791]
[1641235661877,0.15,46449.0,46448.0,0.08118791]
[1641235662077,0.15,46449.0,46448.0,0.13501758]
[1641235663323,0.15,46449.0,46448.0,0.50736556]
[1641235663523,0.15,46449.0,46448.0,0.7960857]
[1641235663724,0.0047,46457.0,46448.0,0.7960857]
[1641235663922,7.70095093,46459.0,46452.0,0.05382379]
[1641235664123,7.70095093,46459.0,46450.0,0.10764757]
[1641235664723,7.70095093,46459.0,46451.0,0.053824]
[1641235664923,7.75477593,46459.0,46451.0,0.053824]
[1641235665124,7.75477593,46459.0,46454.0,0.053824]
[1641235665326,7.75477593,46459.0,46452.0,0.107648]
[1641235665327,0.15,46455.0,46452.0,0.107648]
[1641235665528,7.70095093,46459.0,46447.0,0.10765376]
[1641235665924,7.80860893,46459.0,46442.0,0.42]
[1641235666127,7.70095093,46459.0,46442.0,0.42]
[1641235666325,7.80095093,46459.0,46442.0,0.42]
[1641235666572,7.80095093,46459.0,46443.0,0.29688988]
[1641235666774,0.18369794,46457.0,46443.0,0.29688988]
[1641235667372,0.18369794,46457.0,46448.0,0.053835]
[1641235667574,0.15,46452.0,46448.0,0.053835]
[1641235667774,0.15,46449.0,46448.0,0.053835]
[1641235668376,0.15,46449.0,46442.0,0.52767]
[1641235668573,0.00124294,46452.0,46448.0,0.053836]
[1641235668772,0.15,46449.0,46448.0,0.14310418]
[1641235668973,0.15,46449.0,46448.0,0.19310418]
[1641235669772,0.15,46449.0,46448.0,0.39790906]
[1641235669972,0.15,46449.0,46448.0,0.74822506]
[1641235670417,0.15,46449.0,46448.0,0.54725165]
[1641235671817,0.15,46449.0,46448.0,0.83406272]
[1641235672021,0.0049,46456.0,46448.0,1.13608672]
[1641235672221,7.699725,46459.0,46454.0,0.4258356]
[1641235672420,7.699725,46459.0,46456.0,0.0816964]
[1641235672622,7.699725,46459.0,46457.0,0.0482]
[1641235673621,7.699725,46459.0,46457.0,0.155827]
[1641235673821,7.699725,46459.0,46458.0,0.053812]
[1641235677940,7.699725,46459.0,46458.0,0.102012]
[1641235678140,7.699725,46459.0,46458.0,0.0482]
[1641235678743,7.69334067,46459.0,46458.0,0.0482]
[1641235679743,7.69334067,46459.0,46457.0,0.16143718]
[1641235679943,0.30770926,46458.0,46457.0,0.16143718]
[1641235680143,7.69334067,46459.0,46457.0,0.16143718]
[1641235680345,7.69334067,46459.0,46457.0,0.053815]
[1641235681567,0.58434082,46458.0,46457.0,0.053815]
[1641235682567,7.69334067,46459.0,46457.0,0.107638]
[1641235683769,0.30034594,46458.0,46457.0,0.107638]
[1641235683971,7.69334067,46459.0,46457.0,0.053815]
[1641235685419,0.15,46458.0,46457.0,0.053815]
[1641235685620,0.22683,46458.0,46449.0,0.05383]
[1641235685819,0.00122992,46454.0,46445.0,0.107667]
[1641235686317,0.58521266,46454.0,46445.0,0.107667]
[1641235686519,0.58521266,46454.0,46448.0,0.30356107]
[1641235687118,0.58521266,46454.0,46450.0,0.053833]
[1641235687318,0.58398274,46451.0,46450.0,0.053833]
[1641235687918,0.58398274,46452.0,46450.0,0.053833]
[1641235688819,0.63781574,46452.0,46450.0,0.053833]
[1641235689280,0.63781574,46452.0,46448.0,0.053835]
[1641235689682,0.63636453,46452.0,46446.0,0.08093734]
[1641235690084,0.053833,46452.0,46446.0,0.08093734]
[1641235690283,0.053833,46452.0,46448.0,0.26233493]
[1641235690683,0.053833,46452.0,46449.0,0.053833]
[1641235692284,0.053833,46452.0,46448.0,0.26233493]
[1641235692285,0.053833,46452.0,46447.0,0.053836]
[1641235692752,0.30426685,46451.0,46447.0,0.053836]
[1641235692944,0.05384,46447.0,46442.0,0.42]
[1641235694645,0.05384,46447.0,46442.0,0.473841]
[1641235695244,0.05384,46447.0,46442.0,0.54766708]
[1641235695445,0.81677058,46451.0,46442.0,0.54766708]
[1641235695843,0.81677058,46451.0,46446.0,0.05383098]
[1641235695844,1.0,46450.0,46446.0,0.05383098]
[1641235696046,1.81677058,46450.0,46443.0,0.10765763]
[1641235696244,1.81677058,46450.0,46445.0,0.053829]
[1641235696471,1.81677058,46450.0,46447.0,0.053828]
[1641235696675,1.81677058,46450.0,46447.0,0.161488]
[1641235696876,1.0,46450.0,46447.0,0.21531846]
[1641235697076,1.0,46450.0,46447.0,0.161488]
[1641235697677,1.0,46450.0,46448.0,0.053831]
[1641235699277,1.58288866,46450.0,46448.0,0.053831]
[1641235701029,0.58288866,46450.0,46448.0,0.053831]
[1641235702421,0.63672466,46450.0,46448.0,0.053831]
[1641235702919,0.053836,46450.0,46448.0,0.053831]
[1641235704369,0.053836,46450.0,46448.0,0.013731]
[1641235705369,0.15,46449.0,46448.0,0.013731]
[1641235705570,0.15,46449.0,46445.0,0.107676]
[1641235705772,0.15,46446.0,46445.0,0.053838]
[1641235705973,0.15,46446.0,46442.0,0.42]
[1641235706174,0.08617254,46443.0,46442.0,0.42]
[1641235707374,0.08617254,46443.0,46442.0,0.770316]
[1641235708020,0.08617254,46443.0,46442.0,0.77014821]
[1641235708418,0.08617254,46443.0,46442.0,0.76998042]
[1641235708618,0.08617254,46443.0,46442.0,0.76981263]
[1641235708819,0.08617254,46443.0,46442.0,0.82364989]
[1641235709021,0.08617254,46443.0,46442.0,0.8234821]
[1641235710320,0.08617254,46443.0,46442.0,0.82331431]
[1641235710921,0.08617254,46443.0,46442.0,0.87331431]
[1641235712079,0.00798813,46447.0,46443.0,0.05383527]
[1641235712286,0.00798813,46447.0,46444.0,0.053836]
[1641235713079,0.15,46445.0,46444.0,0.053836]
[1641235713281,0.15,46445.0,46443.0,0.16150627]
[1641235713481,0.08617625,46444.0,46443.0,0.16150627]
[1641235713680,0.08617625,46444.0,46443.0,0.51182227]
[1641235713882,0.08617625,46444.0,46443.0,0.40415127]
[1641235714281,0.00798813,46447.0,46446.0,0.07821392]
[1641235714481,0.00798813,46447.0,46446.0,0.36325925]
[1641235714881,0.00798813,46447.0,46446.0,0.35051447]
[1641235715082,0.00798813,46447.0,46446.0,0.81938803]
[1641235715346,0.00798813,46447.0,46446.0,2.12871447]
[1641235715543,1.0,46450.0,46449.0,0.00120612]
[1641235715744,1.0,46450.0,46449.0,0.0482]
[1641235715940,1.0,46450.0,46449.0,0.27859511]
[1641235716342,1.0,46450.0,46449.0,0.32859511]
[1641235716642,1.0,46450.0,46449.0,0.83272811]
[1641235716943,1.0,46450.0,46449.0,0.88654389]
[1641235717343,1.0,46450.0,46449.0,1.09546294]
[1641235718544,1.0,46450.0,46449.0,1.24546294]
[1641235719171,0.00798803,46454.0,46449.0,2.38146294]
[1641235719373,0.00798803,46454.0,46451.0,0.1076315]
[1641235719573,0.00798803,46454.0,46453.0,0.08350009]
[1641235719779,0.00798803,46454.0,46453.0,0.4203671]
[1641235719974,0.00798803,46454.0,46453.0,0.42035515]
[1641235720172,7.6763287,46459.0,46453.0,0.42035515]
[1641235720371,7.6763287,46459.0,46453.0,0.0482]
[1641235720574,7.66907378,46459.0,46455.0,0.2152656]
[1641235720771,7.66907378,46459.0,46456.0,0.05]
[1641235721973,7.66907378,46459.0,46457.0,0.107639]
[1641235722273,7.66907378,46459.0,46457.0,0.16145853]
[1641235723729,7.66907378,46459.0,46457.0,0.25402562]
[1641235726690,7.66907378,46459.0,46458.0,0.05]
[1641235727788,7.66907378,46459.0,46458.0,0.38310157]
[1641235727989,7.66907378,46459.0,46458.0,0.48255112]
[1641235728189,7.66907378,46459.0,46458.0,1.43926355]
[1641235728393,7.23865178,46459.0,46458.0,1.43926355]
[1641235728688,7.23865178,46459.0,46458.0,0.30326355]
[1641235729289,7.23865178,46459.0,46458.0,1.33926355]
[1641235729488,7.23865178,46459.0,46458.0,1.43926355]
[1641235730327,6.37785178,46459.0,46458.0,0.30326355]
[1641235730529,6.37785178,46459.0,46458.0,0.62366499]
[1641235730827,5.94744278,46459.0,46458.0,1.75966499]
[1641235731033,5.94744278,46459.0,46458.0,2.10998099]
[1641235732028,5.51705678,46459.0,46458.0,2.10998099]
[1641235732431,4.65629478,46459.0,46458.0,2.10998099]
[1641235732834,4.22591965,46459.0,46458.0,2.10998099]
[1641235733031,3.36516765,46459.0,46458.0,2.10998099]
[1641235733630,3.36456329,46459.0,46458.0,2.10998099]
[1641235734082,3.36456329,46459.0,46458.0,3.4415241]
[1641235734083,2.93419729,46459.0,46458.0,3.4415241]
[1641235734881,2.93419729,46459.0,46458.0,2.71298099]
[1641235736083,2.93419729,46459.0,46458.0,2.39257955]
[1641235736685,2.93419729,46459.0,46458.0,1.20657955]
[1641235736885,2.93419729,46459.0,46458.0,0.45233]
[1641235738153,2.93419729,46459.0,46458.0,2.1159105]
[1641235738753,2.93419729,46459.0,46458.0,2.21591049]
[1641235738957,2.93419729,46459.0,46458.0,2.1159105]
[1641235741255,2.93419729,46459.0,46458.0,0.9799105]
[1641235741475,2.93419729,46459.0,46458.0,1.78833]
[1641235741676,2.93419729,46459.0,46458.0,0.65233]
[1641235742875,2.93419729,46459.0,46458.0,1.78833]
[1641235748744,2.93419729,46459.0,46458.0,0.45413]
[1641235749793,2.93419729,46459.0,46458.0,0.40413]
[1641235750295,2.93419729,46459.0,46458.0,0.350316]
[1641235750503,2.93419729,46459.0,46456.0,0.053817]
[1641235750697,0.35292964,46457.0,46442.0,0.41949663]
[1641235750895,0.35292964,46457.0,46447.0,0.350316]
[1641235751898,0.35292964,46457.0,46450.0,0.053825]
[1641235752095,2.25436339,46455.0,46450.0,0.053825]
[1641235752297,2.25436339,46455.0,46450.0,0.107648]
[1641235752497,2.25436339,46455.0,46450.0,0.157648]
[1641235753732,2.25436339,46455.0,46450.0,0.107648]
[1641235754735,2.25436339,46455.0,46451.0,0.107646]
[1641235755036,2.25436339,46455.0,46451.0,0.161469]
[1641235755436,2.25436339,46455.0,46451.0,0.107646]
[1641235756238,2.25436339,46455.0,46453.0,0.05382]
[1641235756478,2.93419729,46459.0,46453.0,1.24364]
[1641235756679,2.93419729,46459.0,46453.0,1.18982]
[1641235756879,2.93419729,46459.0,46453.0,1.28982]
[1641235757084,2.93419729,46459.0,46457.0,0.4347784]
[1641235757280,2.93419729,46459.0,46457.0,1.29361508]
[1641235757480,2.93419729,46459.0,46458.0,0.053809]
[1641235757679,2.93419729,46459.0,46458.0,1.189809]
[1641235758180,2.93419729,46459.0,46458.0,1.289809]
[1641235760826,2.93419729,46459.0,46458.0,0.153809]
[1641235761026,2.93419729,46459.0,46458.0,0.053809]
[1641235762026,2.93419729,46459.0,46458.0,0.103809]
[1641235763325,2.93419729,46459.0,46458.0,0.053809]
[1641235763727,2.93419729,46459.0,46457.0,0.107617]
[1641235766581,2.93419729,46459.0,46457.0,0.161432]
[1641235767581,2.93419729,46459.0,46457.0,0.26524564]
[1641235768030,2.93419729,46459.0,46457.0,0.31524564]
[1641235768428,2.93419729,46459.0,46457.0,0.26524564]
[1641235768631,2.93419729,46459.0,46457.0,1.14307714]
[1641235768830,2.93419729,46459.0,46457.0,2.27907714]
[1641235769031,2.93419729,46459.0,46457.0,1.14307714]
[1641235769231,2.93419729,46459.0,46457.0,2.27907714]
[1641235770632,2.93419729,46459.0,46458.0,1.8638315]
[1641235771032,2.93419729,46459.0,46458.0,1.2842]
[1641235773581,2.93419729,46459.0,46458.0,0.1482]
[1641235773983,2.93419729,46459.0,46458.0,0.0482]
[1641235774182,2.93419729,46459.0,46458.0,0.77743812]
[1641235774581,2.93419729,46459.0,46458.0,0.87743812]
[1641235774782,2.93419729,46459.0,46458.0,1.91343812]
[1641235774988,2.93419729,46459.0,46458.0,1.2842]
[1641235776330,2.93419729,46459.0,46458.0,1.3342]
[1641235776631,2.93419729,46459.0,46458.0,1.3842]
[1641235776831,2.93419729,46459.0,46458.0,2.11343812]
[1641235777433,2.93419729,46459.0,46458.0,2.06343812]
[1641235779194,2.93419729,46459.0,46458.0,2.11343812]
[1641235781897,2.93419729,46459.0,46458.0,1.3842]
[1641235785038,2.93419729,46459.0,46458.0,1.69243747]
[1641235790081,2.93419729,46459.0,46458.0,1.3842]
[1641235791244,2.93419729,46459.0,46458.0,1.68369005]
[1641235792448,2.93419729,46459.0,46458.0,2.41268642]
[1641235793847,2.93419729,46459.0,46458.0,2.36268642]
[1641235794289,2.93419729,46459.0,46458.0,2.06319637]
[1641235796895,2.93419729,46459.0,46458.0,0.92719637]
[1641235798833,2.93419729,46459.0,46458.0,0.15]
[1641235799132,2.93419729,46459.0,46458.0,0.05]
[1641235809483,2.93419729,46459.0,46458.0,1.186]
[1641235809880,2.93419729,46459.0,46458.0,1.286]
[1641235812585,2.93419729,46459.0,46458.0,1.58663164]
[1641235813546,2.93419729,46459.0,46458.0,1.93694764]
[1641235815649,2.93419729,46459.0,46458.0,1.636316]
[1641235816910,2.93419729,46459.0,46458.0,1.586316]
[1641235818912,2.93419729,46459.0,46458.0,1.636316]
[1641235820447,2.93419729,46459.0,46458.0,1.684516]
[1641235823146,2.93419729,46459.0,46458.0,2.41351237]
[1641235823547,2.93419729,46459.0,46458.0,1.684516]
[1641235825098,2.93419729,46459.0,46458.0,1.679516]
[1641235825697,2.93419729,46459.0,46458.0,2.40846158]
[1641235827106,2.93419729,46459.0,46458.0,1.12746158]
[1641235827304,3.03539774,46459.0,46457.0,0.053809]
[1641235827500,0.87404475,46458.0,46451.0,0.06181986]
[1641235827761,0.01581551,46449.0,46442.0,1.09066149]
[1641235827949,0.00128997,46446.0,46442.0,1.09066149]
[1641235828151,0.0012717,46443.0,46434.0,1.09066149]
[1641235828352,0.00123391,46436.0,46435.0,0.351346]
[1641235831252,0.06186057,46440.0,46436.0,0.053838]
[1641235831485,0.06186057,46440.0,46436.0,0.161514]
[1641235831885,0.06186057,46440.0,46437.0,6.045e-05]
[1641235832085,0.33877434,46440.0,46437.0,6.045e-05]
[1641235832288,2.05044376,46441.0,46437.0,6.045e-05]
[1641235832485,2.05044376,46441.0,46438.0,0.053837]
[1641235833087,0.32941518,46440.0,46438.0,0.053837]
[1641235833488,0.33974898,46440.0,46438.0,0.053837]
[1641235833688,2.05044376,46441.0,46438.0,0.053837]
[1641235834488,2.04974376,46441.0,46438.0,0.053837]
[1641235835088,2.04974376,46441.0,46438.0,0.14518005]
[1641235836038,0.00090199,46447.0,46439.0,0.44822034]
[1641235836439,0.00090199,46447.0,46445.0,0.09806155]
[1641235836637,0.00090199,46447.0,46445.0,0.36884761]
[1641235837444,0.00090199,46447.0,46445.0,0.42267561]
[1641235837839,0.00090199,46447.0,46445.0,0.15188955]
[1641235838742,0.00090199,46447.0,46446.0,0.25128229]
[1641235838994,0.00090199,46447.0,46446.0,0.60262829]
[1641235839395,0.00090199,46447.0,46446.0,0.88115821]
[1641235840000,0.00090199,46447.0,46446.0,1.61020608]
[1641235840595,0.00090199,46447.0,46446.0,2.74620608]
[1641235840796,0.00090199,46447.0,46446.0,2.01715821]
[1641235841097,0.00090199,46447.0,46446.0,1.83862829]
[1641235841301,0.00090199,46447.0,46446.0,0.351346]
[1641235841697,0.00090199,46447.0,46445.0,0.053828]
[1641235841898,0.00090199,46447.0,46445.0,0.78289354]
[1641235842297,0.05473344,46447.0,46445.0,0.78289354]
[1641235842937,0.32659665,46446.0,46445.0,0.053828]
[1641235843138,0.33405014,46446.0,46445.0,0.053828]
[1641235843337,0.05473344,46447.0,46445.0,0.053828]
[1641235843538,0.33083781,46446.0,46445.0,0.053828]
[1641235843739,0.05473344,46447.0,46442.0,0.053835]
[1641235843740,0.05383418,46445.0,46442.0,0.053835]
[1641235844543,0.34382727,46447.0,46443.0,0.34635814]
[1641235844544,0.00090199,46447.0,46443.0,0.34635814]
[1641235844739,0.00090199,46447.0,46446.0,0.351346]
[1641235844939,0.00090199,46447.0,46446.0,0.44470156]
[1641235845143,0.00090199,46447.0,46446.0,0.54470156]
[1641235846898,0.00090199,46447.0,46446.0,0.59852256]
[1641235847297,0.00090199,46447.0,46446.0,0.90055978]
[1641235847899,0.00090199,46447.0,46446.0,0.59852256]
[1641235849299,0.00090199,46447.0,46446.0,0.89964479]
[1641235850951,0.00090199,46447.0,46446.0,0.89928651]
[1641235851650,0.00090199,46447.0,46446.0,0.59852256]
[1641235851852,0.00090199,46447.0,46445.0,0.161462]
[1641235852051,0.00090199,46447.0,46441.0,0.1]
[1641235852052,0.1,46446.0,46441.0,0.1]
[1641235852254,0.00128965,46444.0,46441.0,0.1]
[1641235852451,0.0012729,46442.0,46433.0,0.9542]
[1641235852650,0.00127655,46431.0,46422.0,2.01066149]
[1641235852853,0.00127655,46431.0,46430.0,0.35995]
[1641235853050,0.39455814,46444.0,46430.0,0.98799298]
[1641235853250,0.39455814,46444.0,46437.0,0.08196009]
[1641235853453,0.10768347,46443.0,46437.0,0.08196009]
[1641235853654,0.15768347,46443.0,46437.0,0.08196009]
[1641235853852,0.05,46443.0,46437.0,0.08196009]
[1641235854100,0.001204,46444.0,46437.0,0.08196009]
[1641235854600,0.00090199,46447.0,46439.0,0.053836]
[1641235854799,0.00090199,46447.0,46442.0,0.053826]
[1641235854998,0.00090199,46447.0,46446.0,0.3559895]
[1641235855198,0.00090199,46447.0,46446.0,0.4041895]
[1641235855600,0.00012372,46447.0,46446.0,0.33210827]
[1641235855803,0.00012372,46447.0,46446.0,0.68335648]
[1641235855998,0.00012372,46447.0,46446.0,0.78335648]
[1641235856297,0.00012372,46447.0,46446.0,0.83701169]
[1641235856900,0.00012372,46447.0,46446.0,1.13856542]
[1641235859343,0.00012372,46447.0,46446.0,1.03856542]
[1641235859545,0.00012372,46447.0,46446.0,1.13856542]
[1641235860546,0.00012372,46447.0,46446.0,0.73701169]
[1641235860945,0.00012372,46447.0,46446.0,1.03561333]
[1641235861145,0.00012372,46447.0,46446.0,1.13561333]
[1641235861796,0.00012372,46447.0,46446.0,0.6509508]
[1641235861997,0.00012372,46447.0,46446.0,0.2995348]
[1641235862395,0.00012372,46447.0,46446.0,0.1513348]
[1641235862796,0.00012372,46447.0,46446.0,0.72692005]